[Event "Live Chess"]
[Site "Chess.com"]
[Date "2023.05.20"]
[Round "-"]
[White "luckywookie"]
[Black "Stanbad1"]
[Result "0-1"]
[WhiteElo "744"]
[BlackElo "2422"]
[TimeControl "300"]
[EndTime "13:31:38 PDT"]
[Termination "Stanbad1 won by checkmate"]

1. e4 {[%clk 0:04:57.9]} 1... e6 {[%clk 0:04:58.3]} 2. Nf3 {[%clk 0:04:55.8]}
2... c5 {[%clk 0:04:57.1]} 3. c3 {[%clk 0:04:54.4]} 3... Nc6 {[%clk 0:04:55.7]}
4. d4 {[%clk 0:04:52.3]} 4... cxd4 {[%clk 0:04:54.4]} 5. cxd4 {[%clk 0:04:50.2]}
5... d5 {[%clk 0:04:54.3]} 6. e5 {[%clk 0:04:48.4]} 6... f6 {[%clk 0:04:53.2]}
7. Bb5 {[%clk 0:04:46]} 7... Bd7 {[%clk 0:04:51.5]} 8. O-O {[%clk 0:04:41.7]}
8... fxe5 {[%clk 0:04:49.1]} 9. Bxc6 {[%clk 0:04:38.6]} 9... bxc6 {[%clk
0:04:46.8]} 10. Nxe5 {[%clk 0:04:37.7]} 10... Nf6 {[%clk 0:04:46.3]} 11. Bg5
{[%clk 0:04:28.8]} 11... Bd6 {[%clk 0:04:43.3]} 12. Bxf6 {[%clk 0:04:20.8]}
12... Qxf6 {[%clk 0:04:40.8]} 13. Nxd7 {[%clk 0:04:19]} 13... Kxd7 {[%clk
0:04:39]} 14. Nc3 {[%clk 0:04:04]} 14... Rhf8 {[%clk 0:04:36.7]} 15. f3 {[%clk
0:04:02.3]} 15... Qf4 {[%clk 0:04:32.8]} 16. g3 {[%clk 0:04:00.4]} 16... Qe3+
{[%clk 0:04:29.4]} 17. Kg2 {[%clk 0:03:59]} 17... Rab8 {[%clk 0:04:28.5]} 18. b3
{[%clk 0:03:56.8]} 18... Qxc3 {[%clk 0:04:26.2]} 19. Rc1 {[%clk 0:03:48.1]}
19... Qa5 {[%clk 0:04:24.4]} 20. Rc2 {[%clk 0:03:42.6]} 20... Rb4 {[%clk
0:04:21.2]} 21. Qd2 {[%clk 0:03:39.2]} 21... Qb6 {[%clk 0:04:19.1]} 22. Rd1
{[%clk 0:03:28.4]} 22... a5 {[%clk 0:04:16.6]} 23. Qe3 {[%clk 0:03:08.9]} 23...
a4 {[%clk 0:04:14.2]} 24. Rc3 {[%clk 0:03:00.4]} 24... axb3 {[%clk 0:04:11.8]}
25. Rxb3 {[%clk 0:02:59]} 25... Rxb3 {[%clk 0:04:10.2]} 26. axb3 {[%clk
0:02:57.4]} 26... e5 {[%clk 0:04:09]} 27. Qg5 {[%clk 0:02:20.6]} 27... Re8
{[%clk 0:04:04.6]} 28. Qxg7+ {[%clk 0:02:17.9]} 28... Re7 {[%clk 0:04:02.4]} 29.
Qg4+ {[%clk 0:02:11.6]} 29... Kc7 {[%clk 0:04:00.6]} 30. dxe5 {[%clk 0:02:00.5]}
30... Bxe5 {[%clk 0:03:58.7]} 31. Re1 {[%clk 0:01:58.6]} 31... Qxb3 {[%clk
0:03:56.4]} 32. f4 {[%clk 0:01:34.8]} 32... Qb2+ {[%clk 0:03:53.7]} 33. Kf1
{[%clk 0:01:27.5]} 33... Bd6 {[%clk 0:03:51.1]} 34. Rxe7+ {[%clk 0:01:25.2]}
34... Bxe7 {[%clk 0:03:51]} 35. Qg7 {[%clk 0:01:19.8]} 35... Qxg7 {[%clk
0:03:48.7]} 36. g4 {[%clk 0:01:10.2]} 36... Qxg4 {[%clk 0:03:46.2]} 37. Kf2
{[%clk 0:01:09.1]} 37... Qxf4+ {[%clk 0:03:46.1]} 38. Kg2 {[%clk 0:01:07.7]}
38... Bd6 {[%clk 0:03:45.5]} 39. Kh1 {[%clk 0:01:04.7]} 39... Qxh2# {[%clk
0:03:45]} 0-1

[Event "Live Chess"]
[Site "Chess.com"]
[Date "2023.05.20"]
[Round "-"]
[White "mightysmasher"]
[Black "Shepherds_Pie"]
[Result "0-1"]
[WhiteElo "2098"]
[BlackElo "1919"]
[TimeControl "300"]
[EndTime "13:31:40 PDT"]
[Termination "Shepherds_Pie won by resignation"]

1. e4 {[%clk 0:04:58.5]} 1... e6 {[%clk 0:04:57.6]} 2. d4 {[%clk 0:04:57.6]}
2... d5 {[%clk 0:04:56.5]} 3. exd5 {[%clk 0:04:57.2]} 3... exd5 {[%clk
0:04:54.8]} 4. Nf3 {[%clk 0:04:56.8]} 4... Nc6 {[%clk 0:04:53.5]} 5. Bd3 {[%clk
0:04:56.2]} 5... Bd6 {[%clk 0:04:51.2]} 6. O-O {[%clk 0:04:55.3]} 6... Nge7
{[%clk 0:04:48.2]} 7. c3 {[%clk 0:04:52.7]} 7... Bg4 {[%clk 0:04:46.8]} 8. Bg5
{[%clk 0:04:51.3]} 8... f6 {[%clk 0:04:44.6]} 9. Bh4 {[%clk 0:04:48.8]} 9... Qd7
{[%clk 0:04:43.5]} 10. Nbd2 {[%clk 0:04:46]} 10... O-O {[%clk 0:04:42.1]} 11.
Qc2 {[%clk 0:04:44.1]} 11... Bf5 {[%clk 0:04:36.8]} 12. Bg3 {[%clk 0:04:43.4]}
12... Bxd3 {[%clk 0:04:34.4]} 13. Qxd3 {[%clk 0:04:42.8]} 13... Bxg3 {[%clk
0:04:30.7]} 14. hxg3 {[%clk 0:04:42.2]} 14... Qf5 {[%clk 0:04:29.1]} 15. Qxf5
{[%clk 0:04:40.8]} 15... Nxf5 {[%clk 0:04:24.1]} 16. Nb3 {[%clk 0:04:40.3]}
16... b6 {[%clk 0:04:22]} 17. Rfe1 {[%clk 0:04:39.6]} 17... Rfe8 {[%clk
0:04:19.6]} 18. Rad1 {[%clk 0:04:38.4]} 18... Kf7 {[%clk 0:04:17.9]} 19. Nbd2
{[%clk 0:04:37.6]} 19... Rxe1+ {[%clk 0:04:14.1]} 20. Rxe1 {[%clk 0:04:36]}
20... Re8 {[%clk 0:04:12.7]} 21. Rd1 {[%clk 0:04:35.5]} 21... a5 {[%clk
0:04:06]} 22. Kf1 {[%clk 0:04:34.2]} 22... g5 {[%clk 0:04:04]} 23. Re1 {[%clk
0:04:33.2]} 23... Rxe1+ {[%clk 0:04:00.9]} 24. Nxe1 {[%clk 0:04:32.4]} 24... Nd6
{[%clk 0:04:00.4]} 25. Ke2 {[%clk 0:04:31.2]} 25... f5 {[%clk 0:03:57.6]} 26.
Kd3 {[%clk 0:04:30.3]} 26... Ne7 {[%clk 0:03:49.3]} 27. Nef3 {[%clk 0:04:28.7]}
27... Kf6 {[%clk 0:03:44.4]} 28. Ne5 {[%clk 0:04:27.3]} 28... Ng6 {[%clk
0:03:36.6]} 29. Ndf3 {[%clk 0:04:22.1]} 29... g4 {[%clk 0:03:33]} 30. Nxg6
{[%clk 0:04:20.4]} 30... hxg6 {[%clk 0:03:30.8]} 31. Ne5 {[%clk 0:04:19.6]}
31... g5 {[%clk 0:03:20.8]} 32. f3 {[%clk 0:04:17.1]} 32... gxf3 {[%clk
0:03:12.4]} 33. gxf3 {[%clk 0:04:15.8]} 33... c5 {[%clk 0:03:10.9]} 34. Nd7+
{[%clk 0:04:14.6]} 34... Ke7 {[%clk 0:03:04.9]} 35. dxc5 {[%clk 0:04:03.1]}
35... Kxd7 {[%clk 0:03:02.9]} 36. cxd6 {[%clk 0:04:01.7]} 36... Kxd6 {[%clk
0:03:01.9]} 37. Kd4 {[%clk 0:04:01.2]} 37... b5 {[%clk 0:02:57.9]} 38. a3 {[%clk
0:03:59.9]} 38... a4 {[%clk 0:02:51.3]} 39. Ke3 {[%clk 0:03:57.2]} 39... Kc5
{[%clk 0:02:45.8]} 40. Kd3 {[%clk 0:03:56.4]} 40... f4 {[%clk 0:02:40.6]} 41. g4
{[%clk 0:03:51.8]} 41... Kc6 {[%clk 0:02:37.6]} 42. Kd4 {[%clk 0:03:49.1]} 42...
Kd6 {[%clk 0:02:36.2]} 43. Kd3 {[%clk 0:03:48.6]} 43... Kc5 {[%clk 0:02:32.4]}
44. Kd2 {[%clk 0:03:47.5]} 44... Kc4 {[%clk 0:02:25.4]} 45. Kc2 {[%clk
0:03:44.3]} 45... d4 {[%clk 0:02:24.1]} 46. cxd4 {[%clk 0:03:43.5]} 46... Kxd4
{[%clk 0:02:23.1]} 47. Kd2 {[%clk 0:03:42.8]} 47... Kc4 {[%clk 0:02:21.4]} 48.
Kc2 {[%clk 0:03:41.9]} 48... b4 {[%clk 0:02:20.2]} 49. Kd2 {[%clk 0:03:40.9]}
49... bxa3 {[%clk 0:02:13.7]} 50. bxa3 {[%clk 0:03:39.9]} 50... Kb3 {[%clk
0:02:12.8]} 51. Kd3 {[%clk 0:03:39.2]} 51... Kxa3 {[%clk 0:02:11.8]} 52. Kc3
{[%clk 0:03:38.6]} 52... Ka2 {[%clk 0:02:09.7]} 53. Kc2 {[%clk 0:03:37.8]} 53...
a3 {[%clk 0:02:06.8]} 54. Kc1 {[%clk 0:03:35.4]} 54... Kb3 {[%clk 0:02:05.4]}
55. Kb1 {[%clk 0:03:34.7]} 55... Kc3 {[%clk 0:02:04.7]} 56. Ka2 {[%clk
0:03:33.4]} 56... Kd3 {[%clk 0:02:04]} 57. Kxa3 {[%clk 0:03:32.6]} 57... Ke3
{[%clk 0:02:03.9]} 58. Kb3 {[%clk 0:03:32]} 58... Kxf3 {[%clk 0:02:03.8]} 59.
Kc3 {[%clk 0:03:31.7]} 59... Kg2 {[%clk 0:02:02.7]} 60. Kd3 {[%clk 0:03:30.9]}
60... f3 {[%clk 0:02:02.1]} 61. Ke4 {[%clk 0:03:30.5]} 61... f2 {[%clk
0:02:01.8]} 62. Kf5 {[%clk 0:03:30.1]} 62... f1=Q+ {[%clk 0:02:01.6]} 63. Kxg5
{[%clk 0:03:29.8]} 63... Kh3 {[%clk 0:02:00.3]} 64. Kh5 {[%clk 0:03:28]} 64...
Qf7+ {[%clk 0:01:57.9]} 65. Kg5 {[%clk 0:03:27.1]} 65... Qg7+ {[%clk 0:01:57.1]}
66. Kf5 {[%clk 0:03:26.5]} 66... Qxg4+ {[%clk 0:01:55.8]} 0-1

[Event "Live Chess"]
[Site "Chess.com"]
[Date "2023.05.20"]
[Round "-"]
[White "YrrriKharkiv"]
[Black "WelshTiger"]
[Result "1/2-1/2"]
[WhiteElo "2051"]
[BlackElo "2394"]
[TimeControl "300"]
[EndTime "13:31:43 PDT"]
[Termination "Game drawn by repetition"]

1. d4 {[%clk 0:04:55.5]} 1... d5 {[%clk 0:04:56.4]} 2. c4 {[%clk 0:04:53.3]}
2... e6 {[%clk 0:04:55.9]} 3. Nc3 {[%clk 0:04:51.8]} 3... c5 {[%clk 0:04:55.3]}
4. cxd5 {[%clk 0:04:50.5]} 4... exd5 {[%clk 0:04:54.5]} 5. Nf3 {[%clk
0:04:48.2]} 5... Nc6 {[%clk 0:04:53.4]} 6. g3 {[%clk 0:04:47.2]} 6... Nf6 {[%clk
0:04:52]} 7. Bg2 {[%clk 0:04:45.3]} 7... Be7 {[%clk 0:04:51.5]} 8. O-O {[%clk
0:04:41.7]} 8... O-O {[%clk 0:04:51.1]} 9. Bg5 {[%clk 0:04:40.3]} 9... Be6
{[%clk 0:04:48.1]} 10. Bxf6 {[%clk 0:04:36.2]} 10... Bxf6 {[%clk 0:04:45.7]} 11.
dxc5 {[%clk 0:04:35.3]} 11... Bxc3 {[%clk 0:04:44.9]} 12. bxc3 {[%clk
0:04:33.9]} 12... Qa5 {[%clk 0:04:44.8]} 13. Nd4 {[%clk 0:04:21.3]} 13... Qxc5
{[%clk 0:04:42.4]} 14. Nxe6 {[%clk 0:04:11.5]} 14... fxe6 {[%clk 0:04:41.3]} 15.
Rc1 {[%clk 0:04:08.4]} 15... Ne5 {[%clk 0:04:39.5]} 16. Qd4 {[%clk 0:04:01.3]}
16... Qc7 {[%clk 0:04:36.3]} 17. Bh3 {[%clk 0:03:45.2]} 17... Rae8 {[%clk
0:04:34.4]} 18. Rfd1 {[%clk 0:03:30.4]} 18... b6 {[%clk 0:04:24.6]} 19. Bg2
{[%clk 0:03:18.9]} 19... Nc6 {[%clk 0:04:09.3]} 20. Qa4 {[%clk 0:03:11.3]} 20...
Na5 {[%clk 0:04:03.8]} 21. e4 {[%clk 0:03:07.6]} 21... dxe4 {[%clk 0:03:57]} 22.
Qxe4 {[%clk 0:03:02.3]} 22... Qc5 {[%clk 0:03:55.8]} 23. Qd4 {[%clk 0:02:57.8]}
23... Qh5 {[%clk 0:03:47.5]} 24. Re1 {[%clk 0:02:51.7]} 24... Rf6 {[%clk
0:03:41.5]} 25. Qd7 {[%clk 0:02:43.3]} 25... Qf7 {[%clk 0:03:36.7]} 26. Qxf7+
{[%clk 0:02:37.6]} 26... Kxf7 {[%clk 0:03:36.6]} 27. c4 {[%clk 0:02:33]} 27...
Rc8 {[%clk 0:03:32.7]} 28. Bf1 {[%clk 0:02:21.8]} 28... Nb7 {[%clk 0:03:29.6]}
29. Rc3 {[%clk 0:02:15.7]} 29... Nc5 {[%clk 0:03:28.7]} 30. Ra3 {[%clk
0:02:14.4]} 30... a5 {[%clk 0:03:26]} 31. Rb1 {[%clk 0:02:12.5]} 31... e5 {[%clk
0:03:24.9]} 32. Re3 {[%clk 0:02:09.5]} 32... e4 {[%clk 0:03:17.6]} 33. Bg2
{[%clk 0:02:07.1]} 33... Re8 {[%clk 0:03:16.4]} 34. Rbe1 {[%clk 0:02:05]} 34...
Rfe6 {[%clk 0:03:14.3]} 35. Bh3 {[%clk 0:02:04]} 35... Re5 {[%clk 0:03:12.8]}
36. f4 {[%clk 0:02:01.8]} 36... R5e7 {[%clk 0:03:08.5]} 37. Bg2 {[%clk
0:02:00.9]} 37... Kf6 {[%clk 0:03:06.7]} 38. Rb1 {[%clk 0:01:59.5]} 38... Re6
{[%clk 0:03:04]} 39. Bh3 {[%clk 0:01:58.2]} 39... Rd6 {[%clk 0:03:02.7]} 40. Bg2
{[%clk 0:01:55.4]} 40... Rd4 {[%clk 0:03:01.5]} 41. Rxb6+ {[%clk 0:01:53]} 41...
Kf7 {[%clk 0:02:58.3]} 42. Rc6 {[%clk 0:01:49.5]} 42... Rd1+ {[%clk 0:02:56]}
43. Bf1 {[%clk 0:01:46]} 43... Nd3 {[%clk 0:02:44.4]} 44. Rc7+ {[%clk 0:01:38]}
44... Kf6 {[%clk 0:02:43.1]} 45. Rc6+ {[%clk 0:01:36.9]} 45... Kf7 {[%clk
0:02:42.4]} 46. Rc7+ {[%clk 0:01:36.1]} 46... Kf6 {[%clk 0:02:41.9]} 47. Rd7
{[%clk 0:01:35.3]} 47... Rc8 {[%clk 0:02:38]} 48. Rd4 {[%clk 0:01:33.4]} 48...
Nc5 {[%clk 0:02:35.3]} 49. Rd5 {[%clk 0:01:30.6]} 49... h6 {[%clk 0:02:32.4]}
50. Kf2 {[%clk 0:01:26.7]} 50... a4 {[%clk 0:02:31.8]} 51. Be2 {[%clk
0:01:23.3]} 51... Ra1 {[%clk 0:02:30.4]} 52. Rd2 {[%clk 0:01:18.1]} 52... g5
{[%clk 0:02:22.5]} 53. fxg5+ {[%clk 0:01:14.9]} 53... hxg5 {[%clk 0:02:22.4]}
54. Ra3 {[%clk 0:01:11.3]} 54... Ke5 {[%clk 0:02:18.7]} 55. Rd5+ {[%clk
0:01:09.1]} 55... Kf6 {[%clk 0:02:17.7]} 56. Rd6+ {[%clk 0:01:06.2]} 56... Ke5
{[%clk 0:02:15.6]} 57. Rd5+ {[%clk 0:01:05.8]} 57... Kf6 {[%clk 0:02:15.1]} 58.
Rd6+ {[%clk 0:01:05.2]} 58... Ke7 {[%clk 0:02:13.7]} 59. Rd5 {[%clk 0:01:03.9]}
59... Kf6 {[%clk 0:02:01.1]} 1/2-1/2

[Event "Live Chess"]
[Site "Chess.com"]
[Date "2023.05.20"]
[Round "-"]
[White "Brooms1989"]
[Black "toog"]
[Result "0-1"]
[WhiteElo "1018"]
[BlackElo "2616"]
[TimeControl "300"]
[EndTime "13:31:43 PDT"]
[Termination "toog won by checkmate"]

1. e4 {[%clk 0:04:57.1]} 1... e5 {[%clk 0:04:57.1]} 2. Nc3 {[%clk 0:04:54.6]}
2... d6 {[%clk 0:04:55.2]} 3. Nf3 {[%clk 0:04:51.2]} 3... Nf6 {[%clk 0:04:54]}
4. Bc4 {[%clk 0:04:49.5]} 4... Be7 {[%clk 0:04:52.7]} 5. O-O {[%clk 0:04:48]}
5... O-O {[%clk 0:04:51.8]} 6. h3 {[%clk 0:04:47.4]} 6... Be6 {[%clk 0:04:46.8]}
7. Bb3 {[%clk 0:04:42.9]} 7... c6 {[%clk 0:04:42.9]} 8. d3 {[%clk 0:04:40.3]}
8... Nbd7 {[%clk 0:04:41.9]} 9. Ne2 {[%clk 0:04:35.3]} 9... Bxb3 {[%clk
0:04:39.5]} 10. axb3 {[%clk 0:04:33.7]} 10... Re8 {[%clk 0:04:39.4]} 11. Ng3
{[%clk 0:04:29.9]} 11... Bf8 {[%clk 0:04:38.4]} 12. Bg5 {[%clk 0:04:22.5]} 12...
g6 {[%clk 0:04:36.2]} 13. h4 {[%clk 0:04:03.3]} 13... h6 {[%clk 0:04:34.8]} 14.
Be3 {[%clk 0:04:00.5]} 14... h5 {[%clk 0:04:30]} 15. Rxa7 {[%clk 0:03:57.3]}
15... Rxa7 {[%clk 0:04:28]} 16. Bxa7 {[%clk 0:03:57.2]} 16... b6 {[%clk
0:04:27.1]} 17. Bxb6 {[%clk 0:03:56.8]} 17... Qxb6 {[%clk 0:04:25.7]} 18. Ng5
{[%clk 0:03:55.9]} 18... Ng4 {[%clk 0:04:22.9]} 19. Qd2 {[%clk 0:03:36.6]} 19...
Bh6 {[%clk 0:04:19.7]} 20. Nf3 {[%clk 0:03:31.9]} 20... Bxd2 {[%clk 0:04:16.7]}
21. Nxd2 {[%clk 0:03:30.5]} 21... Ndf6 {[%clk 0:04:14.8]} 22. c4 {[%clk
0:03:20]} 22... Nxf2 {[%clk 0:04:12.7]} 23. Rxf2 {[%clk 0:03:18.3]} 23... Ng4
{[%clk 0:04:11.2]} 24. Nh1 {[%clk 0:03:16.1]} 24... Ra8 {[%clk 0:04:09.1]} 25.
Nf1 {[%clk 0:03:12.8]} 25... Ra1 {[%clk 0:04:07.6]} 26. b4 {[%clk 0:03:05.4]}
26... Qd4 {[%clk 0:04:02.9]} 27. b3 {[%clk 0:03:02.2]} 27... Ra2 {[%clk
0:03:59.7]} 28. b5 {[%clk 0:02:53.5]} 28... Rxf2 {[%clk 0:03:57.6]} 29. Nxf2
{[%clk 0:02:53]} 29... Qxf2+ {[%clk 0:03:57.3]} 30. Kh1 {[%clk 0:02:52.4]} 30...
Qxf1# {[%clk 0:03:56.9]} 0-1

[Event "Live Chess"]
[Site "Chess.com"]
[Date "2023.05.20"]
[Round "-"]
[White "reshmiramachandran"]
[Black "friarnator"]
[Result "0-1"]
[WhiteElo "507"]
[BlackElo "1979"]
[TimeControl "300"]
[EndTime "13:31:48 PDT"]
[Termination "friarnator won by checkmate"]

1. d4 {[%clk 0:04:53.3]} 1... Nf6 {[%clk 0:04:58.7]} 2. Nc3 {[%clk 0:04:47.5]}
2... g6 {[%clk 0:04:56.5]} 3. e3 {[%clk 0:04:46.4]} 3... Bg7 {[%clk 0:04:45.7]}
4. Nb5 {[%clk 0:04:35.3]} 4... O-O {[%clk 0:04:42.6]} 5. Nf3 {[%clk 0:04:27.8]}
5... a6 {[%clk 0:04:36.1]} 6. Nc3 {[%clk 0:04:15.6]} 6... d6 {[%clk 0:04:34.7]}
7. Bc4 {[%clk 0:04:09.3]} 7... b5 {[%clk 0:04:32.6]} 8. Bd3 {[%clk 0:03:57]}
8... Bb7 {[%clk 0:04:31.6]} 9. e4 {[%clk 0:03:49.8]} 9... Nbd7 {[%clk
0:04:30.3]} 10. Bg5 {[%clk 0:03:47.6]} 10... c5 {[%clk 0:04:27.7]} 11. d5 {[%clk
0:03:43]} 11... c4 {[%clk 0:04:23.9]} 12. Bxf6 {[%clk 0:03:29.5]} 12... Bxf6
{[%clk 0:04:19.6]} 13. Bf1 {[%clk 0:03:23.7]} 13... b4 {[%clk 0:04:11.5]} 14.
Na4 {[%clk 0:03:19.7]} 14... Rc8 {[%clk 0:04:02.3]} 15. Bxc4 {[%clk 0:02:59.7]}
15... Rxc4 {[%clk 0:03:58.9]} 16. O-O {[%clk 0:02:52.1]} 16... Rxe4 {[%clk
0:03:57.3]} 17. a3 {[%clk 0:02:39.1]} 17... bxa3 {[%clk 0:03:52.3]} 18. bxa3
{[%clk 0:02:36.5]} 18... Rxa4 {[%clk 0:03:48.5]} 19. c3 {[%clk 0:02:29.2]} 19...
Rc4 {[%clk 0:03:43]} 20. Rc1 {[%clk 0:02:22.4]} 20... Qc7 {[%clk 0:03:40.7]} 21.
Nd2 {[%clk 0:02:11.7]} 21... Rxc3 {[%clk 0:03:34.6]} 22. a4 {[%clk 0:02:08.3]}
22... Rxc1 {[%clk 0:03:30.9]} 23. Qxc1 {[%clk 0:01:59.9]} 23... Qxc1 {[%clk
0:03:30.8]} 24. Rxc1 {[%clk 0:01:58.2]} 24... Bxd5 {[%clk 0:03:30.7]} 25. Rc7
{[%clk 0:01:52.7]} 25... Nc5 {[%clk 0:03:13.7]} 26. a5 {[%clk 0:01:42.2]} 26...
Rb8 {[%clk 0:03:09.6]} 27. g3 {[%clk 0:01:39]} 27... Rb2 {[%clk 0:03:06.7]} 28.
Nf1 {[%clk 0:01:30.8]} 28... Rb1 {[%clk 0:03:04.9]} 29. Rc8+ {[%clk 0:01:19.2]}
29... Kg7 {[%clk 0:03:03.2]} 30. Ra8 {[%clk 0:01:13.2]} 30... Bc4 {[%clk
0:03:02.3]} 31. Rd8 {[%clk 0:01:03.2]} 31... Bxf1 {[%clk 0:03:00.2]} 32. Rd7
{[%clk 0:00:49.2]} 32... Bh3# {[%clk 0:02:58.5]} 0-1

[Event "Live Chess"]
[Site "Chess.com"]
[Date "2023.05.20"]
[Round "-"]
[White "bristolunichess"]
[Black "MarkLim1"]
[Result "1-0"]
[WhiteElo "1824"]
[BlackElo "1641"]
[TimeControl "300"]
[EndTime "13:31:51 PDT"]
[Termination "bristolunichess won by checkmate"]

1. e4 {[%clk 0:04:58.8]} 1... e6 {[%clk 0:04:59.1]} 2. d4 {[%clk 0:04:57.4]}
2... d5 {[%clk 0:04:58.5]} 3. e5 {[%clk 0:04:56.4]} 3... c5 {[%clk 0:04:57.6]}
4. Nf3 {[%clk 0:04:54.7]} 4... Nc6 {[%clk 0:04:56.9]} 5. c3 {[%clk 0:04:53]}
5... Nge7 {[%clk 0:04:56.1]} 6. Bd3 {[%clk 0:04:52.5]} 6... cxd4 {[%clk
0:04:54.8]} 7. O-O {[%clk 0:04:51.1]} 7... dxc3 {[%clk 0:04:52.4]} 8. Nxc3
{[%clk 0:04:51]} 8... Ng6 {[%clk 0:04:51.4]} 9. Re1 {[%clk 0:04:50]} 9... Be7
{[%clk 0:04:50.5]} 10. g3 {[%clk 0:04:44.4]} 10... Qc7 {[%clk 0:04:49.3]} 11.
Qe2 {[%clk 0:04:42.5]} 11... Bd7 {[%clk 0:04:48.2]} 12. h4 {[%clk 0:04:41.3]}
12... O-O-O {[%clk 0:04:43.6]} 13. Bd2 {[%clk 0:04:37.5]} 13... Nb4 {[%clk
0:04:40.2]} 14. Bb1 {[%clk 0:04:32.7]} 14... f6 {[%clk 0:04:33.1]} 15. h5 {[%clk
0:04:27.5]} 15... Nxe5 {[%clk 0:04:31.7]} 16. Nxe5 {[%clk 0:04:26]} 16... fxe5
{[%clk 0:04:30.1]} 17. Qxe5 {[%clk 0:04:21.3]} 17... Bd6 {[%clk 0:04:25]} 18.
Qd4 {[%clk 0:04:13.1]} 18... Bxg3 {[%clk 0:04:13.9]} 19. fxg3 {[%clk 0:03:55]}
19... Qxg3+ {[%clk 0:04:12.3]} 20. Kh1 {[%clk 0:03:54.5]} 20... Nc6 {[%clk
0:04:05.3]} 21. Qg1 {[%clk 0:03:46.2]} 21... Qh3+ {[%clk 0:03:50.7]} 22. Qh2
{[%clk 0:03:45]} 22... Qf3+ {[%clk 0:03:49.7]} 23. Qg2 {[%clk 0:03:44.1]} 23...
Qxh5+ {[%clk 0:03:48.8]} 24. Kg1 {[%clk 0:03:43.1]} 24... Nd4 {[%clk 0:03:39.6]}
25. Rf1 {[%clk 0:03:33.3]} 25... Rhf8 {[%clk 0:03:34.5]} 26. Bd3 {[%clk
0:03:25.5]} 26... Nf3+ {[%clk 0:03:19.9]} 27. Rxf3 {[%clk 0:03:18.8]} 27... Rxf3
{[%clk 0:03:18.7]} 28. Be2 {[%clk 0:03:17.4]} 28... Rdf8 {[%clk 0:03:06.5]} 29.
Bxf3 {[%clk 0:03:14.6]} 29... Rxf3 {[%clk 0:03:05.1]} 30. Rf1 {[%clk 0:03:11.3]}
30... Rxf1+ {[%clk 0:03:01]} 31. Kxf1 {[%clk 0:03:10.7]} 31... Qf5+ {[%clk
0:02:54.1]} 32. Ke2 {[%clk 0:03:08.2]} 32... g6 {[%clk 0:02:48.8]} 33. Qf3
{[%clk 0:02:54.5]} 33... Bc6 {[%clk 0:02:35.9]} 34. Qxf5 {[%clk 0:02:50.7]}
34... exf5 {[%clk 0:02:32.7]} 35. Kd3 {[%clk 0:02:49.7]} 35... Kd7 {[%clk
0:02:32]} 36. Kd4 {[%clk 0:02:48.5]} 36... Ke6 {[%clk 0:02:31.3]} 37. Bg5 {[%clk
0:02:47.5]} 37... a6 {[%clk 0:02:28.7]} 38. Ne2 {[%clk 0:02:46.6]} 38... Bb5
{[%clk 0:02:25.1]} 39. Nf4+ {[%clk 0:02:46.5]} 39... Kd6 {[%clk 0:02:23.3]} 40.
Nxd5 {[%clk 0:02:44.4]} 40... Bc6 {[%clk 0:02:15.8]} 41. Nf4 {[%clk 0:02:38.7]}
41... Bf3 {[%clk 0:02:11.6]} 42. b4 {[%clk 0:02:37.8]} 42... Bc6 {[%clk
0:02:09.1]} 43. a3 {[%clk 0:02:36.1]} 43... Ba4 {[%clk 0:02:07.9]} 44. Nd3
{[%clk 0:02:34.6]} 44... Bc6 {[%clk 0:02:04.7]} 45. Bf4+ {[%clk 0:02:33.8]}
45... Ke6 {[%clk 0:02:02.2]} 46. Nc5+ {[%clk 0:02:31.6]} 46... Kf6 {[%clk
0:02:00.2]} 47. Nd3 {[%clk 0:02:18.4]} 47... g5 {[%clk 0:01:58.9]} 48. Be5+
{[%clk 0:02:16.9]} 48... Kg6 {[%clk 0:01:57]} 49. Bh2 {[%clk 0:02:05]} 49... h5
{[%clk 0:01:54.3]} 50. Ke5 {[%clk 0:01:41.8]} 50... f4 {[%clk 0:01:49.9]} 51.
Nc5 {[%clk 0:01:24.6]} 51... f3 {[%clk 0:01:45.1]} 52. Bg1 {[%clk 0:01:17.1]}
52... h4 {[%clk 0:01:32.9]} 53. Ne6 {[%clk 0:01:05.1]} 53... Kh5 {[%clk
0:01:22.4]} 54. Kf5 {[%clk 0:00:46.5]} 54... h3 {[%clk 0:01:09.6]} 55. Ng7+
{[%clk 0:00:26.7]} 55... Kh4 {[%clk 0:01:06.7]} 56. Bf2# {[%clk 0:00:25.4]} 1-0

[Event "Live Chess"]
[Site "Chess.com"]
[Date "2023.05.20"]
[Round "-"]
[White "BostonStrangler"]
[Black "GEMdzq"]
[Result "1-0"]
[WhiteElo "2064"]
[BlackElo "2228"]
[TimeControl "300"]
[EndTime "13:32:07 PDT"]
[Termination "BostonStrangler won by checkmate"]

1. Nf3 {[%clk 0:04:57.1]} 1... c5 {[%clk 0:04:55.5]} 2. e4 {[%clk 0:04:51.6]}
2... Nf6 {[%clk 0:04:44]} 3. Nc3 {[%clk 0:04:49]} 3... d6 {[%clk 0:04:38.8]} 4.
d4 {[%clk 0:04:45.6]} 4... cxd4 {[%clk 0:04:38.1]} 5. Qxd4 {[%clk 0:04:45.1]}
5... Nc6 {[%clk 0:04:34.8]} 6. Bb5 {[%clk 0:04:44.6]} 6... Bd7 {[%clk
0:04:33.3]} 7. Bxc6 {[%clk 0:04:42.5]} 7... Bxc6 {[%clk 0:04:33.2]} 8. Bg5
{[%clk 0:04:40.9]} 8... g6 {[%clk 0:04:23.1]} 9. Bxf6 {[%clk 0:04:38.9]} 9...
exf6 {[%clk 0:04:23]} 10. O-O-O {[%clk 0:04:37]} 10... Bg7 {[%clk 0:04:21.1]}
11. Qxd6 {[%clk 0:04:35.5]} 11... Qxd6 {[%clk 0:04:20.3]} 12. Rxd6 {[%clk
0:04:34.2]} 12... O-O {[%clk 0:04:19]} 13. Nd4 {[%clk 0:04:32.2]} 13... Rfd8
{[%clk 0:04:03.8]} 14. Rxd8+ {[%clk 0:04:30.6]} 14... Rxd8 {[%clk 0:04:03.7]}
15. Nxc6 {[%clk 0:04:29.9]} 15... bxc6 {[%clk 0:04:03.3]} 16. Rd1 {[%clk
0:04:28.9]} 16... Bh6+ {[%clk 0:04:02]} 17. Kb1 {[%clk 0:04:27]} 17... Rb8
{[%clk 0:03:46.1]} 18. g3 {[%clk 0:04:19.5]} 18... Bf8 {[%clk 0:03:34.6]} 19. b3
{[%clk 0:04:13.2]} 19... Bc5 {[%clk 0:03:32.4]} 20. f4 {[%clk 0:04:10.4]} 20...
Kf8 {[%clk 0:03:31.2]} 21. Na4 {[%clk 0:04:08.4]} 21... Be3 {[%clk 0:03:21.9]}
22. Rd3 {[%clk 0:04:01.5]} 22... Bg1 {[%clk 0:03:20.6]} 23. h3 {[%clk 0:04:00]}
23... Ke7 {[%clk 0:03:19.6]} 24. Kb2 {[%clk 0:03:57.6]} 24... Rb4 {[%clk
0:03:16.2]} 25. c4 {[%clk 0:03:52.8]} 25... Rb8 {[%clk 0:03:01.9]} 26. Kc3
{[%clk 0:03:47.2]} 26... a5 {[%clk 0:03:00.7]} 27. a3 {[%clk 0:03:39]} 27... c5
{[%clk 0:02:52.8]} 28. Rd5 {[%clk 0:03:24.7]} 28... Bd4+ {[%clk 0:02:50.8]} 29.
Kc2 {[%clk 0:03:21.6]} 29... Rc8 {[%clk 0:02:44.4]} 30. Nb6 {[%clk 0:03:13.2]}
30... Rc6 {[%clk 0:02:39.5]} 31. Rd7+ {[%clk 0:02:56.5]} 31... Ke6 {[%clk
0:02:27.2]} 32. Rb7 {[%clk 0:02:51.2]} 32... Bf2 {[%clk 0:02:13.2]} 33. g4
{[%clk 0:02:38.6]} 33... f5 {[%clk 0:02:12.3]} 34. e5 {[%clk 0:02:28.3]} 34...
Be3 {[%clk 0:02:04.6]} 35. Nd5 {[%clk 0:02:26.2]} 35... Bxf4 {[%clk 0:01:50.7]}
36. Nxf4+ {[%clk 0:02:20.2]} 36... Kxe5 {[%clk 0:01:49.9]} 37. Nd3+ {[%clk
0:02:19.3]} 37... Kd4 {[%clk 0:01:42.5]} 38. Rxf7 {[%clk 0:02:07.8]} 38... fxg4
{[%clk 0:01:41.5]} 39. hxg4 {[%clk 0:02:06.7]} 39... h5 {[%clk 0:01:39.8]} 40.
gxh5 {[%clk 0:02:03.5]} 40... gxh5 {[%clk 0:01:39.7]} 41. Rh7 {[%clk 0:01:50]}
41... Rg6 {[%clk 0:01:36.5]} 42. Rd7+ {[%clk 0:01:40.9]} 42... Ke3 {[%clk
0:01:35.8]} 43. Re7+ {[%clk 0:01:35.2]} 43... Kd4 {[%clk 0:01:34.1]} 44. Nf4
{[%clk 0:01:29.5]} 44... Rg4 {[%clk 0:01:31.1]} 45. Ne2# {[%clk 0:01:27.2]} 1-0